fUST/lending_fUST_20250730
["ID","MTS","AMOUNT","RATE_DAILY","PERIOD"]
[376105716,1753864238852,-4929.97281484,0.000197,2]
[376105718,1753864238863,-448.95428223,0.000197,2]
[376105720,1753864238876,-500.0,0.000197,2]
[376105722,1753864238887,-2904.74854359,0.000197,2]
[376105725,1753864238899,-3678.58511886,0.000197,2]
[376105727,1753864238911,-10840.96235326,0.000197,2]
[376105729,1753864238921,-2291.21045881,0.000199,2]
[376105731,1753864238930,-708.17,0.00019938,2]
[376105733,1753864238939,-1565.72,0.00019939,2]
[376105735,1753864238949,-460.0,0.00019939,2]
[376105737,1753864238957,-1115.58,0.00019939,2]
[376105739,1753864238966,-639.3,0.00019939,2]
[376105741,1753864238975,-806.27,0.00019939,2]
[376105743,1753864238984,-460.0,0.00019939,2]
[376105745,1753864238993,-245.92,0.00019939,2]
[376105747,1753864239003,-460.0,0.0001994,2]
[376105749,1753864239012,-460.0,0.0001994,2]
[376105751,1753864239022,-460.0,0.0001994,2]
[376105753,1753864239036,-556.91,0.0001994,2]
[376105755,1753864239049,-460.0,0.0001994,2]
[376105757,1753864239059,-490.65,0.0001994,2]
[376105759,1753864239068,-460.0,0.0001994,2]
[376105761,1753864239078,-460.0,0.0001994,2]
[376105763,1753864239089,-460.0,0.0001994,2]
[376105765,1753864239099,-1524.65,0.0001994,2]
[376105766,1753864239108,-460.0,0.0001994,2]
[376105769,1753864239117,-500.0,0.0001994,2]
[376105771,1753864239128,-500.0,0.0001994,2]
[376105772,1753864239137,-2170.31,0.00019941,2]
[376105775,1753864239147,-572.48,0.00019941,2]
[376105777,1753864239156,-460.0,0.00019942,2]
[376105779,1753864239165,-1080.78,0.00019942,2]
[376105781,1753864239174,-460.0,0.00019945,2]
[376105783,1753864239185,-500.0,0.00020062,2]
[376105785,1753864239194,-1524.65,0.00020062,2]
[376105787,1753864239204,-502.59050196,0.00020062,2]
[376105789,1753864239213,-2291.21045866,0.00020141,2]
[376105790,1753864239222,-12639.5777639,0.00020178,2]
[376105793,1753864239231,-160.0,0.0002018,2]
[376105795,1753864239240,-841.2246943,0.0002018,2]
[376105797,1753864239250,-160.0,0.0002018,2]
[376105798,1753864239259,-214.95885286,0.0002018,2]
[376105800,1753864239269,-160.0,0.0002018,2]
[376105815,1753864239279,-160.0,0.0002018,2]
[376105818,1753864239412,-160.0,0.0002018,2]
[376105820,1753864239422,-312.16666667,0.0002018,2]
[376105822,1753864239431,-160.0,0.00020182,2]
[376105824,1753864239440,-200.644231,0.00020187,2]
[376105825,1753864239449,-160.0,0.0002019,2]
[376105828,1753864239459,-231.43925844,0.0002019,2]
[376105830,1753864239468,-160.0,0.0002019,2]
[376105832,1753864239477,-216.14611358,0.0002019,2]
[376105834,1753864239486,-708.17,0.00020212,2]
[376105836,1753864239498,-1565.72,0.00020213,2]
[376105838,1753864239508,-460.0,0.00020213,2]
[376105839,1753864239517,-1115.58,0.00020213,2]
[376105842,1753864239527,-639.3,0.00020213,2]
[376105844,1753864239536,-806.27,0.00020213,2]
[376105846,1753864239546,-460.0,0.00020213,2]
[376105847,1753864239556,-460.0,0.00020214,2]
[376105850,1753864239565,-460.0,0.00020214,2]
[376105851,1753864239575,-556.91,0.00020214,2]
[376105853,1753864239587,-460.0,0.00020214,2]
[376105855,1753864239596,-307.98,0.00020214,2]
[376105857,1753864239605,-2170.31,0.00020215,2]
[376105859,1753864239614,-572.48,0.00020215,2]
[376105861,1753864239624,-460.0,0.00020216,2]
[376105863,1753864239633,-1080.78,0.00020216,2]
[376105865,1753864239642,-460.0,0.00020219,2]
[376105867,1753864239652,-2291.21045866,0.00020383,3]
[376105869,1753864239661,-427.48179096,0.00020403,2]
[376105871,1753864239670,-708.17,0.00020486,2]
[376105873,1753864239679,-1565.72,0.00020487,2]
[376105875,1753864239689,-460.0,0.00020487,2]
[376105877,1753864239698,-1115.58,0.00020487,2]
[376105879,1753864239709,-639.3,0.00020487,2]
[376105881,1753864239718,-806.27,0.00020487,2]
[376105883,1753864239727,-460.0,0.00020487,2]
[376105885,1753864239736,-460.0,0.00020488,2]
[376105887,1753864239747,-556.91,0.00020488,2]
[376105889,1753864239757,-2170.31,0.00020489,2]
[376105891,1753864239766,-572.48,0.00020489,2]
[376105893,1753864239775,-460.0,0.0002049,2]
[376105895,1753864239784,-1080.78,0.0002049,2]
[376105897,1753864239793,-340.37,0.00020493,2]
[376105899,1753864239803,-420.0,0.00020539,2]
[376105901,1753864239812,-2291.21045866,0.00020624,3]
[376105903,1753864239821,-10804.56035717,0.00020661,2]
[376105905,1753864239831,-260.0,0.0002073,2]
[376105907,1753864239841,-708.17,0.0002076,2]
[376105909,1753864239850,-1565.72,0.00020761,2]
[376105911,1753864239859,-460.0,0.00020761,2]
[376105913,1753864239868,-1115.58,0.00020761,2]
[376105915,1753864239878,-639.3,0.00020761,2]
[376105918,1753864239887,-806.27,0.00020761,2]
[376105919,1753864239897,-460.0,0.00020761,2]
[376105921,1753864239906,-460.0,0.00020762,2]
[376105923,1753864239916,-556.91,0.00020762,2]
[376105927,1753864239928,-2170.31,0.00020763,2]
[376105929,1753864239938,-572.48,0.00020763,2]
[376105931,1753864239948,-460.0,0.00020764,2]
[376105933,1753864239957,-1080.78,0.00020764,2]
[376105935,1753864239967,-2291.21045866,0.00020866,4]
[376105937,1753864239976,-1026.94284714,0.0002098,2]
[376105939,1753864239985,-47097.38989514,0.00021,2]
[376105941,1753864239994,-228.7,0.00021024,3]
[376105943,1753864240003,-708.17,0.00021034,2]
[376105945,1753864240012,-1565.72,0.00021035,2]
[376105947,1753864240021,-460.0,0.00021035,2]
[376105949,1753864240031,-1115.58,0.00021035,2]
[376105951,1753864240040,-639.3,0.00021035,2]
[376105953,1753864240050,-806.27,0.00021035,2]
[376105955,1753864240064,-460.0,0.00021035,2]
[376105957,1753864240082,-460.0,0.00021036,2]
[376105959,1753864240091,-556.91,0.00021036,2]
[376105961,1753864240100,-2170.31,0.00021037,2]
[376105963,1753864240109,-572.48,0.00021037,2]
[376105965,1753864240119,-460.0,0.00021038,2]
[376105967,1753864240128,-1080.78,0.00021038,2]
[376105969,1753864240137,-200.0,0.00021105,15]
[376105971,1753864240147,-200.0,0.00021105,15]
[376105973,1753864240155,-200.0,0.00021105,15]
[376105975,1753864240165,-200.0,0.00021105,15]
[376105977,1753864240174,-200.0,0.00021105,15]
[376105979,1753864240183,-200.0,0.00021105,15]
[376105981,1753864240192,-200.0,0.00021105,15]
[376105983,1753864240202,-200.0,0.00021105,15]
[376105985,1753864240211,-200.0,0.00021105,15]
[376105987,1753864240221,-200.0,0.00021105,15]
[376105989,1753864240229,-200.0,0.00021105,15]
[376105991,1753864240238,-200.0,0.00021105,15]
[376105993,1753864240247,-200.0,0.00021105,15]
[376105995,1753864240256,-200.0,0.00021105,15]
[376105997,1753864240265,-200.0,0.00021105,15]
[376105999,1753864240274,-200.0,0.00021105,15]
[376106000,1753864240284,-200.0,0.00021105,15]
[376106003,1753864240294,-200.0,0.00021105,15]
[376106005,1753864240303,-200.0,0.00021105,15]
[376106007,1753864240312,-200.0,0.00021105,15]
[376106009,1753864240321,-200.0,0.00021105,15]
[376106010,1753864240333,-280.0,0.00021105,15]
[376106012,1753864240343,-2291.21045866,0.00021107,4]
[376106014,1753864240352,-360.0,0.00021278,2]
[376106016,1753864240361,-708.17,0.00021308,2]
[376106018,1753864240371,-1565.72,0.00021309,2]
[376106020,1753864240380,-460.0,0.00021309,2]
[376106022,1753864240389,-1115.58,0.00021309,2]
[376106024,1753864240399,-639.3,0.00021309,2]
[376106026,1753864240408,-806.27,0.00021309,2]
[376106028,1753864240418,-460.0,0.00021309,2]
[376106030,1753864240427,-460.0,0.0002131,2]
[376106032,1753864240436,-556.91,0.0002131,2]
[376106035,1753864240446,-2170.31,0.00021311,2]
[376106038,1753864240455,-572.48,0.00021311,2]
[376106040,1753864240465,-460.0,0.00021312,2]
[376106042,1753864240474,-1080.78,0.00021312,2]
[376106044,1753864240483,-500.0,0.00021317,2]
[376106045,1753864240493,-2291.21045866,0.00021348,5]
[376106048,1753864240506,-228.7,0.00021354,4]
[376106050,1753864240515,-500.0,0.00021473,2]
[376106052,1753864240525,-500.0,0.00021473,2]
[376106054,1753864240535,-500.0,0.00021473,2]
[376106056,1753864240545,-500.0,0.00021473,2]
[376106057,1753864240555,-500.0,0.00021473,2]
[376106060,1753864240564,-500.0,0.00021473,2]
[376106062,1753864240575,-500.0,0.00021473,2]
[376106064,1753864240587,-500.0,0.00021473,2]
[376106066,1753864240597,-387.34131079,0.00021473,2]
[376106067,1753864240606,-500.0,0.00021473,2]
[376106069,1753864240615,-500.0,0.00021473,2]
[376106071,1753864240624,-501.15255493,0.000215,2]
[376106073,1753864240633,-506.76482346,0.000215,2]
[376106075,1753864240642,-500.0,0.000215,2]
[376106077,1753864240651,-398559.03,0.000215,2]
[376106079,1753864240660,-5000.0,0.00021516,2]
[376106081,1753864240669,-179.78425889,0.00021559,2]
[376106083,1753864240679,-708.17,0.00021582,2]
[376106085,1753864240688,-1565.72,0.00021583,2]
[376106087,1753864240697,-460.0,0.00021583,2]
[376106089,1753864240706,-1115.58,0.00021583,2]
[376106091,1753864240716,-639.3,0.00021583,2]
[376106093,1753864240726,-806.27,0.00021583,2]
[376106095,1753864240735,-460.0,0.00021583,2]
[376106097,1753864240745,-460.0,0.00021584,2]
[376106099,1753864240754,-556.91,0.00021584,2]
[376106101,1753864240762,-2170.31,0.00021585,2]
[376106103,1753864240771,-572.48,0.00021585,2]
[376106105,1753864240781,-460.0,0.00021586,2]
[376106107,1753864240790,-1080.78,0.00021586,2]
[376106109,1753864240799,-2291.21045866,0.0002159,5]
[376106111,1753864240809,-500.0,0.00021645,2]
[376106113,1753864240818,-500.0,0.0002165,2]
[376106115,1753864240827,-503.3097924,0.0002165,2]
[376106117,1753864240839,-228.7,0.00021683,4]
[376106119,1753864240849,-115188.79301368,0.00021739,2]
[376106121,1753864240858,-500.0,0.00021739,2]
[376106123,1753864240868,-179.29043487,0.00021761,2]
[376106125,1753864240878,-638.096,0.00021761,2]
[376106127,1753864240887,-199.31785117,0.00021771,2]
[376106129,1753864240896,-25000.0,0.00021771,2]
[376106131,1753864240906,-151.0,0.00021771,2]
[376106133,1753864240915,-151.0,0.00021771,2]
[376106136,1753864240925,-13350.14332659,0.00021771,2]
[376106137,1753864240934,-151.0,0.00021771,2]
[376106139,1753864240944,-151.0,0.00021771,2]
[376106141,1753864240954,-151.0,0.00021771,2]
[376106144,1753864240963,-151.0,0.00021771,2]
[376106145,1753864240972,-151.0,0.00021771,2]
[376106147,1753864240982,-151.0,0.00021771,2]
[376106149,1753864240991,-151.0,0.00021771,2]
[376106151,1753864241000,-151.0,0.00021771,2]
[376106154,1753864241010,-151.0,0.00021771,2]
[376106155,1753864241020,-151.0,0.00021771,2]
[376106157,1753864241029,-151.0,0.00021771,2]
[376106159,1753864241038,-151.0,0.00021771,2]
[376106161,1753864241047,-151.0,0.00021771,2]
[376106163,1753864241056,-151.0,0.00021771,2]
[376106165,1753864241065,-151.0,0.00021771,2]
[376106167,1753864241074,-198.13566607,0.00021771,2]
[376106169,1753864241086,-427.48179096,0.00021785,2]
[376106171,1753864241095,-460.0,0.00021826,2]
[376106173,1753864241104,-2291.21045866,0.00021831,6]
[376106175,1753864241113,-708.17,0.00021856,2]
[376106177,1753864241123,-1565.72,0.00021857,2]
[376106179,1753864241131,-460.0,0.00021857,2]
[376106181,1753864241140,-1115.58,0.00021857,2]
[376106183,1753864241150,-639.3,0.00021857,2]
[376106185,1753864241159,-806.27,0.00021857,2]
[376106187,1753864241168,-460.0,0.00021857,2]
[376106189,1753864241177,-460.0,0.00021858,2]
[376106191,1753864241186,-556.91,0.00021858,2]
[376106193,1753864241196,-2170.31,0.00021859,2]
[376106195,1753864241205,-572.48,0.00021859,2]
[376106197,1753864241214,-460.0,0.0002186,2]
[376106199,1753864241223,-1080.78,0.0002186,2]
[376106201,1753864241232,-150.95560251,0.00021918,2]
[376106203,1753864241241,-1524.65,0.00021999,2]
[376106205,1753864241250,-161.0,0.00022,2]
[376106207,1753864241261,-163.0,0.00022,2]
[376106209,1753864241270,-1731.05,0.00022,7]
[376106211,1753864241279,-3566.34,0.00022,7]
[376106213,1753864241288,-167.0,0.00022,2]
[376106215,1753864241297,-228.7,0.00022013,4]
[376106217,1753864241306,-1000.0,0.00022021,2]
[376106219,1753864241315,-1001.18513933,0.00022021,2]
[376106221,1753864241324,-1000.0,0.00022021,2]
[376106223,1753864241335,-1000.0,0.00022021,2]
[376106225,1753864241344,-1000.0,0.00022021,2]
[376106227,1753864241353,-1000.0,0.00022021,2]
[376106229,1753864241363,-1000.0,0.00022021,2]
[376106231,1753864241372,-511.5459767,0.00022021,2]
[376106233,1753864241380,-2291.21045866,0.00022072,6]
[376106235,1753864241390,-708.17,0.0002213,2]
[376106237,1753864241399,-1565.72,0.00022131,2]
[376106239,1753864241408,-429.65,0.00022131,2]
[376106241,1753864241417,-1115.58,0.00022131,2]
[376106243,1753864241427,-639.3,0.00022131,2]
[376106245,1753864241436,-806.27,0.00022131,2]
[376106247,1753864241445,-460.0,0.00022131,2]
[376106249,1753864241454,-460.0,0.00022132,2]
[376106251,1753864241463,-556.91,0.00022132,2]
[376106253,1753864241473,-2170.31,0.00022133,2]
[376106255,1753864241482,-572.48,0.00022133,2]
[376106257,1753864241491,-460.0,0.00022134,2]
[376106259,1753864241503,-1080.78,0.00022134,2]
[376106261,1753864241512,-2291.21045866,0.00022314,7]
[376106263,1753864241522,-25000.0,0.00022319,2]
[376106265,1753864241531,-228.7,0.00022342,4]
[376106267,1753864241541,-560.0,0.00022374,2]
[376106269,1753864241551,-1500.000001,0.0002238,2]
[376106271,1753864241560,-587.0,0.00022391,2]
[376106273,1753864241570,-2000.0,0.000224,2]
[376106275,1753864241582,-708.17,0.00022404,2]
[376106277,1753864241591,-1565.72,0.00022405,2]
[376106279,1753864241600,-1115.58,0.00022405,2]
[376106281,1753864241609,-639.3,0.00022405,2]
[376106283,1753864241618,-806.27,0.00022405,2]
[376106285,1753864241627,-460.0,0.00022405,2]
[376106287,1753864241637,-460.0,0.00022406,2]
[376106289,1753864241646,-556.91,0.00022406,2]
[376106291,1753864241656,-151.0,0.00022407,7]
[376106293,1753864241666,-2170.31,0.00022407,2]
[376106295,1753864241675,-572.48,0.00022407,2]
[376106297,1753864241684,-459.7863571,0.00022408,2]
[376106299,1753864241693,-1080.78,0.00022408,2]
[376106301,1753864241702,-471756.35965667,0.0002249,7]
[376106302,1753864241716,-121373.90578406,0.0002249,7]
[376106303,1753864241730,-5628.8639964,0.0002249,7]
[376106304,1753864241741,-16673.9,0.0002249,7]
[376106305,1753864241752,-13253.95403824,0.0002249,7]
[376106307,1753864241799,-460.0,0.00018841,2]
[376106308,1753864241809,-2320.28,0.00022,2]
[376106309,1753864241819,-3530.92455723,0.0002249,7]
[376106310,1753864241832,-3751.41388093,0.0002249,7]
[376106313,1753864241843,-28234.23257161,0.0002249,7]
[376106434,1753864243328,-460.0,0.00018845,2]
[376106435,1753864243341,-24.53893278,0.00019119,2]
[376106641,1753864247547,-460.92394096,0.00018843,2]
[376106643,1753864247557,-435.46106722,0.00019119,2]
[376106645,1753864247566,-460.0,0.00019393,2]
[376106647,1753864247577,-460.0,0.00019667,2]
[376106649,1753864247587,-460.0,0.00019941,2]
[376106651,1753864247598,-200.0,0.00022016,15]
[376106653,1753864247607,-200.0,0.00022016,15]
[376106655,1753864247616,-200.0,0.00022016,15]
[376106657,1753864247626,-204.75608501,0.00022131,2]
[376106659,1753864247638,-2230.55386598,0.00022131,2]
[376109242,1753864452502,361.35971643,0.00018745,2]
[376109243,1753864742031,316.18975192,0.00018742,2]
[376109246,1753864899980,207.079959,0.00013699,2]
[376109248,1753864932052,276.66603293,0.00018742,2]
[376109251,1753865123211,242.08277877,0.00018741,2]
[376109253,1753865313624,211.82243145,0.0001874,2]
[376109286,1753865432739,-439.61739747,0.00018839,2]
[376109287,1753865432749,-300.0,0.00018839,2]
[376109288,1753865432759,-131.20611677,0.00018839,2]
[376109289,1753865432771,-328.79388323,0.00018839,2]
[376109290,1753865432780,-215.53144474,0.00018839,2]
[376109291,1753865432797,-244.46855526,0.00018839,2]
[376109292,1753865432807,-62.97427386,0.00018839,2]
[376109326,1753865438872,-252.23840067,0.00018839,2]
[376109327,1753865438882,-460.0,0.00018839,2]
[376109328,1753865438891,-212.00340271,0.00018839,2]
[376109329,1753865438901,-1000.0,0.0001884,2]
[376109330,1753865438910,-158.41311274,0.0001884,2]
[376109331,1753865439032,-301.58688726,0.0001884,2]
[376109332,1753865439042,-603.13512078,0.0001884,2]
[376109333,1753865439052,-460.0,0.0001884,2]
[376109334,1753865439071,-600.92084213,0.0001884,2]
[376109335,1753865439082,-465.07811632,0.0001884,2]
[376109336,1753865439092,-460.0,0.0001884,2]
[376109337,1753865439102,-460.0,0.0001884,2]
[376109338,1753865439112,-460.0,0.0001884,2]
[376109339,1753865439121,-461.94496327,0.0001884,2]
[376109340,1753865439132,-460.0,0.0001884,2]
[376109341,1753865439142,-156.89515509,0.0001884,2]
[376109342,1753865439152,-327.9269834,0.0001884,2]
[376109343,1753865439162,-460.0,0.0001884,2]
[376109344,1753865439171,-460.0,0.0001884,2]
[376109345,1753865439181,-483.4,0.0001884,2]
[376109346,1753865439191,-155.45,0.0001884,2]
[376109347,1753865439201,-460.0,0.0001884,2]
[376109348,1753865439210,-460.0,0.0001884,2]
[376109349,1753865439220,-460.0,0.0001884,2]
[376109350,1753865439230,-460.0,0.0001884,2]
[376109351,1753865439240,-460.0,0.0001884,2]
[376109352,1753865439250,-460.0,0.0001884,2]
[376109353,1753865439259,-460.0,0.0001884,2]
[376109354,1753865439269,-460.0,0.0001884,2]
[376109355,1753865439278,-460.0,0.0001884,2]
[376109356,1753865439288,-464.86400042,0.0001884,2]
[376109357,1753865439298,-460.0,0.0001884,2]
[376109358,1753865439309,-460.0,0.0001884,2]
[376109359,1753865439318,-723.62,0.0001884,2]
[376109360,1753865439329,-460.0,0.0001884,2]
[376109361,1753865439339,-460.0,0.0001884,2]
[376109362,1753865439348,-460.0,0.0001884,2]
[376109363,1753865439358,-460.0,0.0001884,2]
[376109364,1753865439367,-460.0,0.0001884,2]
[376109365,1753865439549,-460.0,0.0001884,2]
[376109366,1753865439559,-460.0,0.0001884,2]
[376109367,1753865439568,-526.36,0.0001884,2]
[376109368,1753865439578,-460.0,0.0001884,2]
[376109369,1753865439587,-460.0,0.0001884,2]
[376109370,1753865439597,-460.0,0.0001884,2]
[376109371,1753865439606,-569.82,0.0001884,2]
[376109372,1753865439615,-460.0,0.0001884,2]
[376109373,1753865439629,-460.0,0.0001884,2]
[376109374,1753865439639,-269.6474469,0.0001884,2]
[376109375,1753865439648,-460.0,0.0001884,2]
[376109376,1753865439658,-460.0,0.0001884,2]
[376109377,1753865439667,-460.0,0.0001884,2]
[376109378,1753865439677,-460.0,0.0001884,2]
[376109379,1753865439686,-460.0,0.0001884,2]
[376109380,1753865439696,-460.0,0.0001884,2]
[376109381,1753865439706,-460.0,0.0001884,2]
[376109382,1753865439716,-460.0,0.0001884,2]
[376109383,1753865439727,-460.0,0.0001884,2]
[376109384,1753865439737,-544.21595373,0.0001884,2]
[376109385,1753865439746,-460.0,0.0001884,2]
[376109386,1753865439755,-460.0,0.0001884,2]
[376109387,1753865439765,-460.0,0.0001884,2]
[376109388,1753865439775,-463.55263674,0.0001884,2]
[376109389,1753865439785,-460.0,0.0001884,2]
[376109390,1753865439794,-460.0,0.0001884,2]
[376109391,1753865439803,-460.0,0.0001884,2]
[376109392,1753865439813,-460.0,0.0001884,2]
[376109393,1753865439824,-15355.32559803,0.0001884,2]
[376109394,1753865439835,-460.0,0.0001884,2]
[376109395,1753865439844,-290.15,0.0001884,2]
[376109396,1753865439854,-460.0,0.00018841,2]
[376109397,1753865439866,-537.20038046,0.00018841,2]
[376109398,1753865439875,-514.85800476,0.00018841,2]
[376109399,1753865439885,-460.0,0.00018841,2]
[376109400,1753865439894,-460.0,0.00018841,2]
[376109401,1753865439904,-460.0,0.00018841,2]
[376109402,1753865439914,-460.0,0.00018841,2]
[376109403,1753865439923,-460.0,0.00018841,2]
[376109404,1753865439933,-460.0,0.00018841,2]
[376109405,1753865439943,-460.0,0.00018841,2]
[376109406,1753865439952,-460.0,0.00018841,2]
[376109407,1753865439962,-460.0,0.00018841,2]
[376109408,1753865439971,-460.0,0.00018841,2]
[376109409,1753865439980,-460.0,0.00018841,2]
[376109410,1753865439990,-460.0,0.00018841,2]
[376109411,1753865439999,-460.0,0.00018841,2]
[376109412,1753865440008,-460.0,0.00018841,2]
[376109413,1753865440019,-460.0,0.00018841,2]
[376109414,1753865440029,-460.0,0.00018841,2]
[376109415,1753865440038,-465.52512022,0.00018841,2]
[376109416,1753865440049,-460.0,0.00018841,2]
[376109417,1753865440059,-604.23,0.00018841,2]
[376109418,1753865440069,-460.0,0.00018841,2]
[376109419,1753865440080,-460.0,0.00018841,2]
[376109420,1753865440090,-460.0,0.00018841,2]
[376109421,1753865440099,-460.0,0.00018841,2]
[376109422,1753865440109,-460.0,0.00018841,2]
[376109423,1753865440119,-460.0,0.00018841,2]
[376109424,1753865440128,-460.0,0.00018841,2]
[376109425,1753865440138,-460.0,0.00018841,2]
[376109426,1753865440148,-500.0,0.00018841,2]
[376109427,1753865440158,-460.0,0.00018841,2]
[376109428,1753865440167,-460.0,0.00018841,2]
[376109429,1753865440177,-460.0,0.00018841,2]
[376109430,1753865440187,-460.0,0.00018841,2]
[376109431,1753865440196,-460.0,0.00018841,2]
[376109432,1753865440205,-1024.18,0.00018841,2]
[376109433,1753865440215,-460.0,0.00018841,2]
[376109434,1753865440224,-460.0,0.00018841,2]
[376109436,1753865440234,-460.0,0.00018841,2]
[376109438,1753865440243,-460.0,0.00018841,2]
[376109439,1753865440252,-468.27,0.00018841,2]
[376109440,1753865440261,-460.0,0.00018841,2]
[376109441,1753865440271,-460.0,0.00018841,2]
[376109442,1753865440281,-460.0,0.00018841,2]
[376109444,1753865440291,-460.0,0.00018841,2]
[376109446,1753865440300,-479.76674032,0.00018841,2]
[376109447,1753865440310,-460.0,0.00018841,2]
[376109448,1753865440320,-460.0,0.00018841,2]
[376109449,1753865440330,-460.0,0.00018841,2]
[376109450,1753865440340,-460.0,0.00018841,2]
[376109452,1753865440349,-460.0,0.00018841,2]
[376109453,1753865440359,-460.0,0.00018841,2]
[376109454,1753865440368,-460.97,0.00018841,2]
[376109455,1753865440378,-460.0,0.00018841,2]
[376109456,1753865440388,-588.47,0.00018841,2]
[376109457,1753865440397,-460.0,0.00018841,2]
[376109458,1753865440407,-460.0,0.00018841,2]
[376109459,1753865440417,-460.0,0.00018841,2]
[376109460,1753865440427,-460.0,0.00018842,2]
[376109461,1753865440436,-460.0,0.00018842,2]
[376109462,1753865440446,-460.0,0.00018842,2]
[376109463,1753865440455,-647.98,0.00018842,2]
[376109464,1753865440464,-460.0,0.00018843,2]
[376109465,1753865440474,-1313.23,0.00018843,2]
[376109466,1753865440483,-1313.23,0.00018843,2]
[376109467,1753865440493,-460.0,0.00018843,2]
[376109468,1753865440504,-460.0,0.00018843,2]
[376109469,1753865440513,-404.02972199,0.00018843,2]
[376109470,1753865440523,-1255.02,0.00018843,2]
[376109471,1753865440533,-460.0,0.00018843,2]
[376109472,1753865440543,-460.0,0.00018843,2]
[376109473,1753865440552,-1313.23,0.00018844,2]
[376109474,1753865440561,-1313.23,0.00018844,2]
[376109475,1753865440571,-1313.23,0.00018844,2]
[376109476,1753865440582,-1313.23,0.00018845,2]
[376109477,1753865440591,-460.0,0.00018845,2]
[376109478,1753865440601,-230.65134317,0.00019113,2]
[376109479,1753865440610,-460.0,0.00019114,2]
[376109480,1753865440620,-460.0,0.00019114,2]
[376109481,1753865440629,-182.72,0.00019114,2]
[376109482,1753865440638,-460.0,0.00019114,2]
[376109483,1753865440648,-460.0,0.00019114,2]
[376109484,1753865440657,-216.42,0.00019114,2]
[376109485,1753865440667,-723.62,0.00019114,2]
[376109486,1753865440676,-460.0,0.00019114,2]
[376109487,1753865440686,-526.36,0.00019114,2]
[376109488,1753865440695,-460.0,0.00019114,2]
[376109489,1753865440705,-460.0,0.00019114,2]
[376109490,1753865440714,-569.82,0.00019114,2]
[376109491,1753865440724,-460.0,0.00019114,2]
[376109492,1753865440733,-460.0,0.00019114,2]
[376109493,1753865440743,-460.0,0.00019114,2]
[376109494,1753865440753,-460.0,0.00019114,2]
[376109495,1753865440763,-460.0,0.00019114,2]
[376109496,1753865440773,-460.0,0.00019114,2]
[376109497,1753865440783,-460.0,0.00019114,2]
[376109498,1753865440793,-460.0,0.00019115,2]
[376109499,1753865440803,-204.39,0.00019115,2]
[376109500,1753865440812,-460.0,0.00019115,2]
[376109501,1753865440821,-460.0,0.00019115,2]
[376109502,1753865440833,-460.0,0.00019115,2]
[376109503,1753865440842,-1024.18,0.00019115,2]
[376109504,1753865440852,-237.38,0.00019115,2]
[376109505,1753865440863,-427.29,0.00019115,2]
[376109506,1753865440873,-460.0,0.00019115,2]
[376109507,1753865440882,-460.0,0.00019115,2]
[376109508,1753865440891,-460.0,0.00019115,2]
[376109509,1753865440903,-460.0,0.00019116,2]
[376109510,1753865440913,-460.0,0.00019116,2]